fUST/lending_fUST_20251111
["ID","MTS","AMOUNT","RATE_DAILY","PERIOD"]
[393594640,1762827047618,-500.0,0.00017858,2]
[393594641,1762827047627,-500.0,0.00017858,2]
[393594642,1762827047636,-500.0,0.00017858,2]
[393594643,1762827047645,-500.0,0.00017858,2]
[393594644,1762827047655,-500.0,0.00017858,2]
[393594645,1762827047665,-500.0,0.00017858,2]
[393594646,1762827047675,-500.0,0.00017858,2]
[393594647,1762827047685,-500.0,0.00017858,2]
[393594648,1762827047695,-96218.34125686,0.00017868,2]
[393594651,1762827069744,682.84,0.000176,2]
[393594652,1762827081736,500.0,0.00037129,60]
[393594653,1762827082034,500.0,0.00037129,60]
[393594654,1762827082295,500.0,0.00037129,60]
[393594655,1762827082529,500.54087896,0.00037129,60]
[393594656,1762827085238,1024.26,0.000328,120]
[393594657,1762827182568,3000.0,0.00037129,60]
[393594658,1762827190174,3000.0,0.00037129,60]
[393594659,1762827204936,6000.0,0.00037129,60]
[393594660,1762827226647,1591.95712549,0.00037129,60]
[393594661,1762827271932,157.61572153,0.00018979,7]
[393594662,1762827339213,500.0,0.000328,120]
[393594663,1762827351655,524.26,0.000328,120]
[393594664,1762827357515,337.14153356,0.00017657,2]
[393594665,1762827366503,213.1324745,0.00016823,2]
[393594667,1762827439045,6640.51525109,0.00017658,2]
[393594668,1762827448473,8157.53180366,0.00037096,30]
[393594669,1762827654639,2126.38074085,0.00017657,2]
[393594670,1762827654663,3684.07010388,0.00017657,2]
[393594671,1762827767606,4525.1405005,0.00017673,2]
[393594673,1762827867573,318.92267983,0.00017149,2]
[393594674,1762827870097,364.48306266,0.00017149,2]
[393594675,1762827874967,1107.39365313,0.00017673,2]
[393594676,1762827874989,3976.750836,0.00017673,2]
[393594677,1762827927882,165.0,0.00032849,120]
[393594681,1762827967031,851136.51713391,0.00037097,20]
[393594684,1762827988141,255.0,0.00032876,120]
[393594685,1762828007866,190.22467746,0.00017149,2]
[393594686,1762828010581,342.40441943,0.00017149,2]
[393594687,1762828012984,608.71896787,0.00017149,2]
[393594688,1762828027818,3016.76033366,0.00017673,2]
[393594690,1762828051098,499.98,0.00032876,120]
[393594694,1762828090478,1865.15076558,0.000125,2]
[393594695,1762828090499,7116.30383851,0.000125,2]
[393594696,1762828097134,1011.60274211,0.00015,2]
[393594698,1762828108492,1872.10341938,0.00017,2]
[393594700,1762828108513,10000.01,0.00017,2]
[393594701,1762828108534,10000.01,0.00017,2]
[393594702,1762828108556,2274.74231402,0.00017,2]
[393594703,1762828110108,163.33243055,0.00025,120]
[393594704,1762828112688,590.70352625,0.000149,2]
[393594705,1762828114831,1202.00471928,0.00032,120]
[393594706,1762828115461,4448.62642798,0.00017654,2]
[393594707,1762828117599,163.16099422,0.000295,120]
[393594710,1762828131363,446.64334573,0.00017681,2]
[393594711,1762828139834,4514.03670004,0.00017681,2]
[393594712,1762828139856,485.96329996,0.00017681,2]
[393594713,1762828162638,1455.60114604,0.00017681,2]
[393594714,1762828185378,2311.32954263,0.00017681,2]
[393594753,1762828231906,-500.0,0.000177,2]
[393594755,1762828231917,-300.0,0.000177,2]
[393594756,1762828231926,-300.0,0.000177,2]
[393594758,1762828231935,-300.0,0.000177,2]
[393594760,1762828231944,-300.0,0.000177,2]
[393594762,1762828231954,-203.94695201,0.00017712,2]
[393594764,1762828231963,-400.09997113,0.00017748,2]
[393594766,1762828231973,-300.0,0.00017751,2]
[393594768,1762828231982,-300.0,0.00017751,2]
[393594770,1762828231991,-1200.0,0.00017751,2]
[393594772,1762828232000,-1200.0,0.00017752,2]
[393594773,1762828232009,-300.0,0.00017752,2]
[393594775,1762828232019,-300.0,0.00017752,2]
[393594777,1762828232028,-300.0,0.00017752,2]
[393594779,1762828232037,-518.68329739,0.00017753,2]
[393594781,1762828232046,-500.0,0.00017753,2]
[393594783,1762828232054,-212.70462688,0.00017753,2]
[393594785,1762828232063,-500.0,0.00017753,2]
[393594786,1762828232072,-500.0,0.00017753,2]
[393594788,1762828232080,-459.0475675,0.00017753,2]
[393594790,1762828232089,-500.0,0.00017753,2]
[393594792,1762828232098,-200.18177461,0.00017753,2]
[393594794,1762828232107,-500.0,0.00017753,2]
[393594796,1762828232116,-500.0,0.00017753,2]
[393594798,1762828232124,-500.0,0.00017753,2]
[393594800,1762828232133,-500.0,0.00017753,2]
[393594801,1762828232142,-500.0,0.00017753,2]
[393594803,1762828232150,-500.0,0.00017753,2]
[393594805,1762828232159,-500.0,0.00017753,2]
[393594807,1762828232168,-500.0,0.00017753,2]
[393594809,1762828232176,-500.0,0.00017753,2]
[393594811,1762828232186,-500.0,0.00017753,2]
[393594812,1762828232195,-500.0,0.00017753,2]
[393594814,1762828232204,-500.0,0.00017753,2]
[393594816,1762828232213,-500.0,0.00017753,2]
[393594818,1762828232222,-500.0,0.00017753,2]
[393594819,1762828232231,-500.0,0.00017753,2]
[393594821,1762828232240,-500.0,0.00017753,2]
[393594823,1762828232248,-500.0,0.00017753,2]
[393594824,1762828232257,-500.0,0.00017753,2]
[393594826,1762828232266,-500.0,0.00017753,2]
[393594827,1762828232275,-500.0,0.00017753,2]
[393594829,1762828232284,-500.0,0.00017753,2]
[393594831,1762828232293,-550.00124585,0.00017753,2]
[393594833,1762828232303,-500.0,0.00017753,2]
[393594835,1762828232312,-500.0,0.00017753,2]
[393594836,1762828232321,-500.0,0.00017753,2]
[393594838,1762828232330,-500.0,0.00017753,2]
[393594839,1762828232340,-500.0,0.00017753,2]
[393594840,1762828232352,-500.0,0.00017753,2]
[393594841,1762828232364,-500.0,0.00017753,2]
[393594842,1762828232373,-500.0,0.00017753,2]
[393594843,1762828232382,-500.0,0.00017753,2]
[393594844,1762828232391,-500.0,0.00017753,2]
[393594845,1762828232403,-500.0,0.00017753,2]
[393594846,1762828232413,-500.0,0.00017753,2]
[393594847,1762828232422,-500.0,0.00017753,2]
[393594848,1762828232431,-500.0,0.00017753,2]
[393594849,1762828232441,-500.0,0.00017753,2]
[393594850,1762828232450,-500.0,0.00017753,2]
[393594851,1762828232459,-500.0,0.00017753,2]
[393594852,1762828232467,-300.0,0.00017753,2]
[393594853,1762828232477,-7240.64068044,0.00017753,2]
[393594854,1762828232489,-1094.46593539,0.00017753,2]
[393594855,1762828232500,-665.97577861,0.00017753,2]
[393594856,1762828232511,-1975.9,0.00017753,2]
[393594883,1762828237781,-300.0,0.000177,2]
[393594885,1762828237791,-4814.38738336,0.00017753,2]
[393594887,1762828237801,-414.88060896,0.00017755,2]
[393594889,1762828237810,-500.0,0.00017755,2]
[393594891,1762828237819,-500.0,0.00017757,2]
[393594893,1762828237828,-288.0,0.00017757,2]
[393594895,1762828237838,-500.0,0.00017758,2]
[393594897,1762828237847,-687.9997248,0.00017758,2]
[393594899,1762828237856,-687.9997248,0.00017758,2]
[393594901,1762828237865,-687.9997248,0.00017758,2]
[393594903,1762828237874,-687.9997248,0.00017758,2]
[393594905,1762828237883,-687.9997248,0.00017758,2]
[393594907,1762828237892,-687.9997248,0.00017758,2]
[393594909,1762828237901,-687.9997248,0.00017758,2]
[393594911,1762828237910,-687.9997248,0.00017758,2]
[393594913,1762828237921,-687.9997248,0.00017758,2]
[393594915,1762828237930,-687.9997248,0.00017758,2]
[393594917,1762828237939,-687.9997248,0.00017758,2]
[393594919,1762828237949,-687.9997248,0.00017758,2]
[393594921,1762828237958,-687.9997248,0.00017758,2]
[393594923,1762828237968,-687.9997248,0.00017758,2]
[393594925,1762828237977,-687.9997248,0.00017758,2]
[393594927,1762828237985,-687.9997248,0.00017758,2]
[393594929,1762828237995,-687.9997248,0.00017758,2]
[393594931,1762828238004,-687.9997248,0.00017758,2]
[393594932,1762828238013,-687.9997248,0.00017758,2]
[393594934,1762828238022,-687.9997248,0.00017758,2]
[393594936,1762828238032,-748.19970072,0.00017758,2]
[393594938,1762828238041,-748.19970072,0.00017758,2]
[393594940,1762828238050,-748.19970072,0.00017758,2]
[393594942,1762828238059,-748.19970072,0.00017758,2]
[393594944,1762828238069,-748.19970072,0.00017758,2]
[393594945,1762828238078,-748.19970072,0.00017758,2]
[393594947,1762828238087,-748.19970072,0.00017758,2]
[393594948,1762828238096,-748.19970072,0.00017758,2]
[393594949,1762828238105,-15474.53069232,0.00017759,2]
[393594950,1762828238117,-314.83229562,0.00017759,2]
[393594963,1762828243234,-497.68100651,0.00017759,2]
[393594972,1762828246196,-7871.19378699,0.00017759,2]
[393594974,1762828260607,1140.26995851,0.0001766,2]
[393594976,1762828288107,4583.39751266,0.00017673,2]
[393594977,1762828309031,4276.34252883,0.00017681,2]
[393594978,1762828309055,723.65747117,0.00017681,2]
[393594979,1762828331376,5000.0,0.00017681,2]
[393594980,1762828342188,1729.18,0.00017681,2]
[393594981,1762828360639,2547.17252883,0.00017673,2]
[393594982,1762828360661,1719.61065015,0.00017673,2]
[393594983,1762828543025,-989.0,0.00017699,2]
[393594984,1762828543051,-202.86801297,0.000177,2]
[393594985,1762828543074,-500.0,0.000177,2]
[393594986,1762828543097,-300.0,0.000177,2]
[393594987,1762828543119,-300.0,0.000177,2]
[393594988,1762828543141,-300.0,0.000177,2]
[393594989,1762828543167,-300.0,0.000177,2]
[393594990,1762828543189,-300.0,0.000177,2]
[393594991,1762828543210,-300.0,0.000177,2]
[393594992,1762828543234,-300.0,0.00017756,2]
[393594993,1762828543257,-300.0,0.00017756,2]
[393594994,1762828543279,-300.0,0.00017756,2]
[393594995,1762828543302,-1200.0,0.00017756,2]
[393594996,1762828543324,-300.0,0.00017756,2]
[393594997,1762828543349,-500.0,0.00017757,2]
[393594998,1762828543376,-500.0,0.00017757,2]
[393594999,1762828543400,-514.85484862,0.00017757,2]
[393595000,1762828543423,-500.0,0.00017757,2]
[393595001,1762828543450,-500.0,0.00017757,2]
[393595002,1762828543474,-545.50990668,0.00017757,2]
[393595003,1762828543498,-500.0,0.00017757,2]
[393595004,1762828543522,-500.0,0.00017757,2]
[393595005,1762828543549,-500.0,0.00017757,2]
[393595006,1762828543572,-500.0,0.00017757,2]
[393595007,1762828543596,-500.0,0.00017757,2]
[393595008,1762828543622,-383.56947809,0.00017757,2]
[393595009,1762828543645,-224.92199811,0.00017757,2]
[393595010,1762828543673,-500.0,0.00017757,2]
[393595011,1762828543815,-500.0,0.00017757,2]
[393595012,1762828543841,-500.0,0.00017757,2]
[393595013,1762828543868,-500.0,0.00017757,2]
[393595014,1762828543892,-500.0,0.00017757,2]
[393595015,1762828543919,-500.0,0.00017757,2]
[393595016,1762828543943,-500.0,0.00017757,2]
[393595017,1762828543966,-500.0,0.00017757,2]
[393595018,1762828543992,-285.00012458,0.00017757,2]
[393595019,1762828544020,-500.0,0.00017757,2]
[393595020,1762828544044,-500.0,0.00017757,2]
[393595021,1762828544067,-500.0,0.00017757,2]
[393595022,1762828544089,-500.0,0.00017757,2]
[393595023,1762828544115,-500.0,0.00017757,2]
[393595024,1762828544138,-250.0,0.00017757,2]
[393595025,1762828544164,-500.0,0.00017757,2]
[393595026,1762828544188,-500.0,0.00017757,2]
[393595027,1762828544212,-500.0,0.00017757,2]
[393595028,1762828544236,-500.0,0.00017757,2]
[393595029,1762828544259,-500.0,0.00017757,2]
[393595030,1762828544284,-500.0,0.00017757,2]
[393595031,1762828544309,-500.0,0.00017757,2]
[393595032,1762828544332,-4421.0568519,0.00017757,2]
[393595033,1762828544355,-10505.3646843,0.00017758,2]
[393595034,1762828544380,-62477.85409475,0.00017759,2]
[393595035,1762828559490,-3055.59834178,0.00017673,2]
[393595036,1762828559541,-100000.0,0.00017759,2]
[393595038,1762828570455,662.245449,0.00013699,2]
[393595039,1762828586799,10000.01,0.00017659,2]
[393595040,1762828586824,10000.01,0.00017659,2]
[393595041,1762828586849,10000.01,0.00017659,2]
[393595042,1762828586871,10000.01,0.00017659,2]
[393595043,1762828586894,10000.01,0.00017659,2]
[393595044,1762828586917,10000.01,0.00017659,2]
[393595045,1762828586943,10000.01,0.00017659,2]
[393595046,1762828586965,10000.01,0.00017659,2]
[393595047,1762828586990,10000.01,0.00017659,2]
[393595048,1762828597008,5000.0,0.0001755,2]
[393595049,1762828601668,-210.22151316,0.00017658,2]
[393595050,1762828601698,-500.0,0.00017658,2]
[393595051,1762828601727,-500.0,0.00017658,2]
[393595052,1762828601754,-500.0,0.00017658,2]
[393595053,1762828601783,-500.0,0.00017658,2]
[393595054,1762828601810,-500.0,0.00017658,2]
[393595055,1762828601838,-500.0,0.00017658,2]
[393595056,1762828601866,-500.0,0.00017658,2]
[393595057,1762828601894,-500.0,0.00017658,2]
[393595058,1762828601924,-500.0,0.00017658,2]
[393595059,1762828601953,-79.56697368,0.00017658,2]
[393595060,1762828602058,-420.43302632,0.00017658,2]
[393595061,1762828602087,-500.0,0.00017658,2]
[393595062,1762828602116,-500.0,0.00017658,2]
[393595063,1762828602144,-500.0,0.00017658,2]
[393595064,1762828602172,-500.0,0.00017658,2]
[393595065,1762828602204,-500.0,0.00017658,2]
[393595066,1762828602234,-264.84105312,0.00017658,2]
[393595067,1762828602262,-250.0,0.00017658,2]
[393595068,1762828602294,-198.33334718,0.00017658,2]
[393595069,1762828602321,-500.0,0.00017658,2]
[393595070,1762828602349,-500.0,0.00017658,2]
[393595071,1762828602378,-338.84960157,0.00017658,2]
[393595072,1762828602682,-55.09594362,0.00017658,2]
[393595073,1762828602712,-191.65799979,0.00017658,2]
[393595074,1762828602739,-500.0,0.00017658,2]
[393595075,1762828602765,-500.0,0.00017658,2]
[393595076,1762828602793,-500.0,0.00017658,2]
[393595077,1762828602820,-500.0,0.00017658,2]
[393595078,1762828602848,-500.0,0.00017658,2]
[393595079,1762828602875,-500.0,0.00017658,2]
[393595080,1762828602902,-216.31411347,0.00017658,2]
[393595081,1762828612109,3073.87388624,0.00017659,2]
[393595082,1762828612133,1926.12611376,0.00017659,2]
[393595083,1762828615478,300.0,0.000176,2]
[393595084,1762828619916,2247.24684308,0.00017659,2]
[393595085,1762828620996,166.65672944,0.00017546,2]
[393595086,1762828622575,300.0,0.00017658,2]
[393595087,1762828626459,300.0,0.000176,2]
[393595088,1762828635153,4759.98031372,0.00017659,2]
[393595089,1762828635176,240.01968628,0.00017659,2]
[393595090,1762828637243,300.0,0.000176,2]
[393595091,1762828639066,500.0,0.00017658,2]
[393595092,1762828639091,500.0,0.00017658,2]
[393595093,1762828639119,500.0,0.00017658,2]
[393595094,1762828639146,500.0,0.00017658,2]
[393595095,1762828639509,250.0,0.00017658,2]
[393595096,1762828639537,500.0,0.00017658,2]
[393595097,1762828639695,500.0,0.00017658,2]
[393595098,1762828639844,500.0,0.00017658,2]
[393595099,1762828647640,300.0,0.000176,2]
[393595100,1762828650142,500.0,0.00017658,2]
[393595101,1762828650172,500.0,0.00017658,2]
[393595102,1762828650199,500.0,0.00017658,2]
[393595103,1762828650316,496.61543644,0.00017658,2]
[393595104,1762828650450,500.0,0.00017658,2]
[393595105,1762828650478,500.0,0.00017658,2]
[393595106,1762828650513,500.0,0.00017658,2]
[393595107,1762828650767,305.07831109,0.00017658,2]
[393595108,1762828650796,373.21105641,0.00017658,2]
[393595109,1762828650826,500.0,0.00017658,2]
[393595110,1762828651167,500.0,0.00017658,2]
[393595111,1762828651460,235.08550978,0.00017658,2]
[393595112,1762828651490,264.91449022,0.00017658,2]
[393595113,1762828651770,500.0,0.00017658,2]
[393595114,1762828652105,500.0,0.00017658,2]
[393595115,1762828652422,500.0,0.00017658,2]
[393595116,1762828652798,500.0,0.00017658,2]
[393595117,1762828653116,500.0,0.00017658,2]
[393595118,1762828653168,348.3838453,0.00017658,2]
[393595119,1762828657410,5000.0,0.00017659,2]
[393595120,1762828658680,300.0,0.000176,2]
[393595121,1762828669406,300.0,0.000176,2]
[393595122,1762828671593,500.0,0.00017658,2]
[393595123,1762828671622,500.0,0.00017658,2]
[393595124,1762828671652,286.71166448,0.00017658,2]
[393595125,1762828671677,213.28833552,0.00017658,2]
[393595126,1762828671706,500.0,0.00017658,2]
[393595127,1762828671734,500.0,0.00017658,2]
[393595128,1762828671765,500.0,0.00017658,2]
[393595129,1762828671832,500.0,0.00017658,2]
[393595130,1762828671866,500.0,0.00017658,2]
[393595131,1762828671907,500.0,0.00017658,2]
[393595132,1762828679706,2192.10394385,0.00017659,2]
[393595133,1762828682698,300.0,0.00017658,2]
[393595134,1762828683437,217.38,0.00015485,2]
[393595135,1762828692656,617.0,0.00032877,120]
[393595136,1762828717676,900.0,0.00017659,2]
[393595138,1762828742313,300.0,0.00017658,2]
[393595139,1762828775305,158.69368959,0.00017547,2]
[393595140,1762828779062,721.85568,0.00032876,120]
[393595142,1762828802455,300.0,0.00017658,2]
[393595144,1762828808451,180.58,0.00017649,2]
[393595145,1762828808688,180.58,0.00017649,2]
[393595146,1762828808716,2057.38403104,0.00017579,2]
[393595147,1762828808739,10000.01,0.00017579,2]
[393595148,1762828808760,2547.93425448,0.00017579,2]
[393595150,1762828841506,4178.54908622,0.00017559,2]
[393595151,1762828855635,300.0,0.000176,2]
[393595152,1762828862931,300.0,0.00017658,2]
[393595153,1762828868792,483.0,0.00032877,120]
[393595154,1762828902635,194.67629291,0.00017306,2]
[393595155,1762828911412,161.0,0.000176,2]
[393595156,1762828917006,361.04484885,0.00017067,2]
[393595157,1762828937006,162.15323257,0.000182,3]
[393595158,1762828989954,1146.21943065,0.000173,2]
[393595159,1762829015991,2631.8505475,0.00016993,2]
[393595160,1762829077842,400.97692989,0.00017067,2]
[393595161,1762829079121,161.0,0.000328,120]
[393595162,1762829122115,162.11033997,0.000328,120]
[393595164,1762829180876,-300.0,0.00017558,2]
[393595184,1762829222552,166.42043092,0.00018978,7]
[393595185,1762829222695,300.0,0.00017558,2]
[393595186,1762829246539,362.0,0.00017444,2]
[393595187,1762829262604,362.0,0.00017262,2]
[393595188,1762829331646,169.44009325,0.00017462,2]
[393595189,1762829342318,300.0,0.00017558,2]
[393595190,1762829402451,300.0,0.00017558,2]
[393595231,1762829432084,-581.74797615,0.00017559,2]
[393595244,1762829432190,-3074.48247431,0.00017559,2]
[393595247,1762829432200,-9736.88552368,0.00017559,2]
[393595250,1762829432209,-198.81065271,0.00017561,2]
[393595252,1762829432219,-362.0,0.00017562,2]
[393595254,1762829432228,-362.0,0.00017585,2]
[393595256,1762829432238,-362.0,0.00017597,2]
[393595259,1762829432250,-500.0,0.000176,2]
[393595262,1762829432261,-362.0,0.00017615,2]
[393595265,1762829432270,-362.0,0.00017658,2]
[393595267,1762829432280,-42592.02208162,0.00017659,2]
[393595324,1762829440645,-495.62,0.00017659,2]
[393595345,1762829443081,-420.9599979,0.00017659,2]
[393595483,1762829446435,-778.49709915,0.00017659,2]
[393595502,1762829535866,169.590313,8.612e-05,2]
[393595503,1762829536082,169.590313,0.00016886,2]
[393595511,1762829562887,3199.20164417,0.00017559,2]
[393595512,1762829594907,6461.62772983,0.00017573,2]
[393595513,1762829594930,3256.72017661,0.00017573,2]
[393595514,1762829788760,2799.30143864,0.00017573,2]
[393595515,1762829855130,6478.8986043,0.00017573,2]
[393595516,1762829858129,502.72,0.00032877,120]
[393595518,1762829936121,3521.1113957,0.00017559,2]
[393595519,1762829936144,10000.01,0.00017559,2]
[393595520,1762829936166,10000.01,0.00017559,2]
[393595521,1762829936188,10000.01,0.00017559,2]
[393595522,1762829936210,10000.01,0.00017559,2]
[393595523,1762829946507,-300.0,0.00017558,2]
[393595524,1762829949946,-3522.83274654,0.00017559,2]
[393595526,1762830019045,2602.10861828,0.00017459,2]
[393595532,1762830089683,164.183311,0.00016558,2]
[393595533,1762830092563,-300.0,0.00017557,2]
[393595534,1762830115389,6886.28035306,0.00017459,2]
[393595535,1762830122474,300.0,0.00017557,2]
[393595536,1762830145496,728.2482493,0.00017557,2]
[393595537,1762830164402,402.0,0.00017557,2]
[393595538,1762830182202,300.0,0.00017557,2]
[393595539,1762830223391,565.746583,0.00016569,2]
[393595540,1762830242661,217.73481464,0.00017557,2]
[393595541,1762830242684,82.26518536,0.00017557,2]
[393595542,1762830254482,2276.84504096,0.00017458,2]
[393595543,1762830271873,411.62864112,0.00017557,2]
[393595544,1762830271910,500.0,0.00017557,2]
[393595545,1762830271943,568.64231328,0.00017557,2]
[393595546,1762830271977,631.10776742,0.00017557,2]
[393595547,1762830272016,500.0,0.00017557,2]
[393595548,1762830272048,500.0,0.00017557,2]
[393595549,1762830272081,500.0,0.00017557,2]
[393595550,1762830272122,234.83838453,0.00017557,2]
[393595551,1762830272152,500.0,0.00017557,2]
[393595552,1762830272188,500.0,0.00017557,2]
[393595553,1762830272219,500.0,0.00017557,2]
[393595554,1762830272249,500.0,0.00017557,2]
[393595555,1762830272441,500.0,0.00017557,2]
[393595556,1762830272471,500.0,0.00017557,2]
[393595557,1762830272504,500.0,0.00017557,2]
[393595558,1762830272536,294.68266733,0.00017557,2]
[393595559,1762830272558,205.31733267,0.00017557,2]
[393595560,1762830272588,500.0,0.00017557,2]
[393595561,1762830272617,500.0,0.00017557,2]
[393595562,1762830272647,500.0,0.00017557,2]
[393595563,1762830272679,551.66306442,0.00017557,2]
[393595564,1762830272707,500.0,0.00017557,2]
[393595565,1762830272737,500.0,0.00017557,2]
[393595566,1762830272769,500.0,0.00017557,2]
[393595567,1762830272804,492.52345236,0.00017557,2]
[393595568,1762830272832,500.0,0.00017557,2]
[393595569,1762830272861,500.0,0.00017557,2]
[393595570,1762830272896,500.0,0.00017557,2]
[393595571,1762830272925,488.82759158,0.00017557,2]
[393595572,1762830272960,500.0,0.00017557,2]
[393595573,1762830273002,500.0,0.00017557,2]
[393595574,1762830273037,500.0,0.00017557,2]
[393595575,1762830273068,500.0,0.00017557,2]
[393595576,1762830273095,500.0,0.00017557,2]
[393595577,1762830301177,287.0,0.00017557,2]
[393595578,1762830302073,300.0,0.00017557,2]
[393595579,1762830303226,674.67855897,0.00017557,2]
[393595580,1762830303249,525.32144103,0.00017557,2]
[393595581,1762830362268,300.0,0.00017557,2]
[393595582,1762830375774,4590.8535687,0.00017459,2]
[393595583,1762830399946,-5183.83499027,0.00017558,2]
[393595584,1762830399980,-10000.01,0.00017558,2]
[393595585,1762830399994,-8545.87576153,0.00017558,2]
[393595588,1762830422229,300.0,0.00017557,2]
[393595589,1762830460108,250.0,0.000174,2]
[393595590,1762830467850,619.15413911,0.000175,2]
[393595591,1762830482245,300.0,0.00017557,2]
[393595592,1762830483568,152.16,0.00015225,2]
[393595593,1762830505017,2164.07996455,0.00017459,2]
[393595594,1762830536383,300.0,0.000175,2]
[393595595,1762830542266,300.0,0.00017557,2]
[393595596,1762830548790,300.0,0.000175,2]
[393595597,1762830559010,300.0,0.000175,2]
[393595598,1762830596246,154.7076466,0.000175,2]
[393595599,1762830602438,1200.0,0.00017557,2]
[393595600,1762830602478,300.0,0.00017557,2]
[393595640,1762830632247,-197.83443965,0.00017558,2]
[393595642,1762830632256,-500.0,0.00017558,2]
[393595644,1762830632266,-500.0,0.00017558,2]
[393595646,1762830632275,-237.73449386,0.00017558,2]
[393595648,1762830632283,-500.0,0.00017558,2]
[393595650,1762830632292,-500.0,0.00017558,2]
[393595652,1762830632302,-500.0,0.00017558,2]
[393595654,1762830632311,-500.0,0.00017558,2]
[393595656,1762830632319,-500.0,0.00017558,2]
[393595658,1762830632329,-500.0,0.00017558,2]
[393595660,1762830632337,-500.0,0.00017558,2]
[393595662,1762830632348,-209.06812154,0.00017558,2]
[393595665,1762830632360,-290.93187846,0.00017558,2]
[393595667,1762830632370,-34.06812154,0.00017558,2]
[393595697,1762830635944,3359.90824974,0.00017459,2]
[393595698,1762830635966,2937.36423231,0.00017459,2]
[393595704,1762830638100,-465.93187846,0.00017558,2]
[393595705,1762830638110,-500.0,0.00017558,2]
[393595706,1762830638120,-500.0,0.00017558,2]
[393595707,1762830638134,-500.0,0.00017558,2]
[393595708,1762830638144,-500.0,0.00017558,2]
[393595709,1762830638153,-500.0,0.00017558,2]
[393595710,1762830638163,-500.0,0.00017558,2]
[393595711,1762830638174,-350.0,0.00017558,2]
[393595712,1762830638184,-276.53639907,0.00017558,2]
[393595713,1762830638200,-359.42648717,0.00017558,2]
[393595714,1762830638210,-221.39149471,0.00017558,2]
[393595715,1762830638219,-616.8514516,0.00017558,2]
[393595716,1762830638229,-851.0,0.00017558,2]
[393595717,1762830638239,-3523.08414822,0.00017559,2]
[393595718,1762830638251,-310.24602,0.00017559,2]
[393595722,1762830640378,-14437.57636146,0.00017559,2]
[393595723,1762830640433,-3425.93754914,0.00017559,2]
[393595742,1762830643349,-663.62072788,0.00017559,2]
[393595743,1762830643510,-7453.7052885,0.00017559,2]
[393595744,1762830643563,-5788.80482485,0.00017559,2]
[393595752,1762830662366,300.0,0.00017557,2]
[393595753,1762830722702,300.0,0.00017557,2]
[393595754,1762830734377,416.14774461,0.00016965,2]
[393595755,1762830742321,213.060966,0.00032876,120]
[393595756,1762830765296,2387.12247492,0.00017459,2]
[393595757,1762830781305,500.0,0.00017558,2]
[393595758,1762830782656,300.0,0.00017557,2]
[393595759,1762830810035,5928.08897731,0.00017558,2]
[393595760,1762830812679,168.0,0.00017522,2]
[393595761,1762830817854,168.0,0.00017385,2]
[393595762,1762830818357,132.65080316,0.00017558,2]
[393595763,1762830818393,367.34919684,0.00017558,2]
[393595764,1762830828915,168.0,0.00017387,2]